{"text_format":"1","workbook":"xlsx","n_sheets":4,"sheets":["はじめに（操作手順）","表紙","県内","13常勤雇用・若年者雇用の記入例（補足）"],"not_rendered":{"charts":0,"images":16,"macros":1,"external_links":0,"defined_names":3,"comments":0,"pivot_tables":0},"unopened":[],"bounds":{"document_bytes":16777216,"sheet_cells":100000,"rows_first":2000,"rows_last":500,"rows_between":2000,"halvings":0,"cell_chars":16384,"cell_head_chars":4096},"cells_cut":0,"cells_raw":0,"read":"whole","date_system":"1900"}

{"sheet":"はじめに（操作手順）","index":0,"n_rows":466,"n_cols":6,"rows_kept":466,"cut":false,"hidden":false,"merged":[]}
["手順の概要"]
[null,"手順の概要を以下に示します。"]
[null,null,"手順１","「県内」シートで必要な入力を行います。"]
[null,null,"手順２","「表紙」シートでの「項目チェック及び申請」ボタン処理を実行し、入力内容が正しいかチェックします。"]
[null,null,"手順３","手順２のチェックの結果、エラーがあった場合は、エラーに該当する項目を修正します。"]
[null,null,"手順４","必要資料の確認を行います。"]
[null,null,"手順５","手順２のチェックの結果、エラーがない場合、判定が青色で「可能」と表示されていることを確認します。"]
[null,null,"手順６","「表紙」シートと「県内」シートを印刷します。"]
[null,null,"手順７","手順６で印刷した印刷物をホチキスでとめて、受付センターに必ず書留で郵送します。　※詳細手順説明なし"]
[]
[null,null,"注１","「県内」「表紙」の記入においてエラーを解消する入力ができない場合は、県ホームページ掲載のFAQを参照願います。"]
[null,null,null,"FAQを確認しても解消方法がわからない場合は、県共同受付センターへ問い合わせ願います。"]
[null,null,null,"【ＦＡＱ】"]
[null,null,null,"https://www.pref.ibaraki.jp/doboku/kanri/kensetsu/menue/nyuusatusankasikaku/r0304/documents/faq.pdf"]
[null,null,null,"【県共同受付センター】"]
[null,null,null,"電話：",null,"０３－５４３５－５５８８"]
[null,null,null,"メールアドレス：",null,"bpo.center.cs@hitachi-systems.com"]
[]
[null,"手順の詳細を以下に示します。"]
[]
["手順１","「県内」シートで必要な入力を行います。"]
[]
[]
[]
[]
[]
[]
[]
[]
[]
[]
[]
[]
[]
[]
[]
[]
[]
[]
[]
[]
[]
[]
[]
[]
[]
[]
[]
[]
[]
[]
[]
[]
[]
[]
[]
[]
[]
[]
[]
[]
[]
[]
[]
[]
[]
[]
[]
[]
[]
[]
[]
[]
[]
[]
[]
[]
[]
[]
[]
[]
[]
[]
[]
[]
[]
[]
[]
[]
[]
[]
[]
[]
[]
[]
[]
[]
[]
[]
[]
[]
[]
[]
[]
[]
[]
[]
[]
[]
[]
[]
[]
[]
[]
[]
[]
[]
[]
[]
["手順２","「表紙」シートでの「項目チェック及び申請」ボタン処理を実行し、入力内容が正しいかチェックします。"]
[]
[]
[]
[]
[]
[]
[]
[]
[]
[]
[]
[]
[]
[]
[]
[]
[]
[]
[]
[]
[]
[]
[]
[]
[]
[]
[]
[]
[]
[]
[]
[]
[]
[]
[]
[]
["手順３","手順２のチェックの結果、エラーがあった場合は、エラーに該当する項目を修正します。"]
[]
[]
[]
[]
[]
[]
[]
[]
[]
[]
[]
[]
[]
[]
[]
[]
[]
[]
[]
[]
[]
[]
[]
[]
[]
[]
[]
[]
[]
[]
[]
[]
[]
[]
[]
[]
[]
[]
["手順４","必要資料の確認を行います。"]
[]
[]
[]
[]
[]
[]
[]
[]
[]
[]
[]
[]
[]
[]
[]
[]
[]
[]
[]
[]
[]
[]
[]
[]
[]
[]
[]
[]
[]
[]
[]
[]
[]
[]
[]
[]
[]
[]
[]
[]
[]
[]
[]
[]
[]
[]
[]
[]
[]
[]
[]
[]
[]
[]
[]
[]
[]
[]
[]
[]
[]
[]
[]
[]
[]
[]
[]
[]
[]
[]
["手順５","手順２のチェックの結果、エラーがない場合、判定が青色で「可能」と表示されていることを確認します。"]
[]
[]
[]
[]
[]
[]
[]
[]
[]
[]
[]
[]
[]
[]
[]
[]
[]
[]
[]
[]
[]
[]
[]
[]
[]
[]
[]
[]
[]
[]
[]
[]
[]
[]
[]
[]
["手順６","「表紙」シートと「県内」シートを印刷します。"]
[]
[null,"判定が「可能」を確認した後に「表紙」シートと「県内」シートの印刷を行います。"]
[]
[]
[]
[]
[]
[]
[]
[]
[]
[]
[]
[]
[]
[]
[]
[]
[]
[]
[]
[]
[]
[]
[]
[]
[]
[]
[]
[]
[]
[]
[]
[]
[]
[]
[]
[]
[]
[]
[]
[]
[]
[]
[]
[]
[]
[]
[]
[]
[]
[]
[]
[]
[]
[]
[]
[]
[]
[]
[]
[]
[]
[]
[]
[]
[]
[]
[]
[]
[]
[]
[]
[]
[]
[]
[]
[]
[]
[]
[]
[]
[]
[]
[]
[]
[]
[]
[]
[]
[]
[]
[]
[]
[]
[]
[]
[]
[]
[]
[]
[]
[]
[]
[]
[]
[]
[]
[]
[]
[]
[]
[]
[]
[]
[]
[]
[]
[]
[]
[]
[]
[]
[]
[]
[]
[]
[]
[]
[]
[]
[]
[]
[]
[]
[]
[]
[]
[]
[]
[]
[]
[]
[]
[]
[]
[]
[]
[]
[]
[]
[]
[]
[]
[]
[]
[]
[]
[]
[]
[]
["以上"]

{"sheet":"表紙","index":1,"n_rows":67,"n_cols":26,"rows_kept":67,"cut":false,"hidden":false,"merged":[[27,17,27,20],[28,17,28,20],[51,4,51,8],[46,8,46,9],[45,7,45,9],[46,11,46,12],[49,5,49,6],[49,7,49,8],[49,10,49,11],[48,13,48,15],[24,3,26,10],[24,12,26,14],[23,12,23,14],[48,5,48,9],[48,10,48,11],[46,13,46,14],[46,17,46,18],[46,19,46,20],[45,10,45,20],[31,3,31,20],[33,3,33,20],[64,3,64,21],[54,3,54,21],[55,3,55,21],[56,3,56,21],[46,15,46,16],[66,3,66,21],[65,3,65,21],[57,3,57,21],[58,3,58,21],[59,3,59,21],[61,3,61,21],[62,3,62,21],[63,3,63,21],[60,3,60,21]]}
[null,"様式第６号（表紙）"]
[]
[null,"本EXCELは、様式第6号（建設工事入札参加資格調書（その１　県内業者用）)の申請書類を作成するものです。"]
[]
[]
[]
[]
[]
[null,"入力漏れのチェック","「県内」シートに記載されている申請項目の入力がすべて完了しましたら、「項目チェック"]
[null,null,"及び申請」ボタンを押下し申請書類の出力をしてください。"]
[null,null,"その際、記入漏れチェックを行います。エラーメッセージが出力されましたら、「県内」シート"]
[null,null,"の申請内容を確認の上申請書類の修正を行ってください。"]
[null,null,"提出する書類が手元にあることを確認の上チェックを行って下さい。"]
[null,null,"※入力チェックする際は、マクロを有効にしてから実施願います。"]
[]
[null,"申請書の印刷","入力チェック漏れが完了しますと、「提出の可否」の判定欄が「可能」の表示に代わります。"]
[null,null,"判定欄が可能と表示されたら、申請書類を印刷し、提出願います。"]
[]
[null,"申請書提出方法","出力された書類は以下の並びでホチキス止めして提出願います。"]
[null,null,null,"様式第６号（表紙）"]
[null,null,null,"様式第6号（建設工事入札参加資格調書（その１　県内業者用）)"]
[]
[]
[null,null,null,null,null,null,null,null,null,null,null,null,"判定"]
[null,null,null,"提出の可否",null,null,null,null,null,null,null,null,"不可"]
[]
[]
[null,null,null,null,null,null,null,null,null,null,null,null,null,null,null,null,null,"事務局使用欄"]
[]
[null,null,null,null,null,null,null,null,null,null,null,null,null,null,null,null,null,null,null,null,null,null,null,null,null,"センターチェック欄"]
[null,null,null,null,null,null,null,null,null,null,null,null,null,null,null,null,null,null,null,null,null,null,null,null,null,"↓"]
[null,"商号又は名称",null,{"$f":"IF(県内!$I$3=\"\",\"\",県内!$I$3)","v":""}]
[]
[null,"代表者氏名",null,{"$f":"IF(県内!$I$4=\"\",\"\",県内!$I$4)","v":""}]
[]
[]
[null,"入力確認欄"]
[null,"大臣・知事コード","①",{"$f":"IF(県内!$I$5=\"\",\"\",県内!$I$5)","v":""},{"$f":"IF(県内!$J$5=\"\",\"\",県内!$J$5)","v":""},"－",{"$f":"IF(県内!$L$5=\"\",\"\",県内!$L$5)","v":""},{"$f":"IF(県内!$M$5=\"\",\"\",県内!$M$5)","v":""},{"$f":"IF(県内!$N$5=\"\",\"\",県内!$N$5)","v":""},{"$f":"IF(県内!$O$5=\"\",\"\",県内!$O$5)","v":""},{"$f":"IF(県内!$P$5=\"\",\"\",県内!$P$5)","v":""},{"$f":"IF(県内!$Q$5=\"\",\"\",県内!$Q$5)","v":""},{"$f":"IF(県内!$I$6=\"\",\"\",県内!$I$6)","v":""},{"$f":"IF(県内!$J$6=\"\",\"\",県内!$J$6)","v":""},"－",{"$f":"IF(県内!$L$6=\"\",\"\",県内!$L$6)","v":""},{"$f":"IF(県内!$M$6=\"\",\"\",県内!$M$6)","v":""},{"$f":"IF(県内!$N$6=\"\",\"\",県内!$N$6)","v":""},{"$f":"IF(県内!$O$6=\"\",\"\",県内!$O$6)","v":""},{"$f":"IF(県内!$P$6=\"\",\"\",県内!$P$6)","v":""},{"$f":"IF(県内!$Q$6=\"\",\"\",県内!$Q$6)","v":""}]
[]
[null,"審査基準日","②",{"$f":"IF(県内!$I$7=\"\",\"\",県内!$I$7)","v":""},{"$f":"IF(県内!$J$7=\"\",\"\",県内!$J$7)","v":""},{"$f":"IF(県内!$K$7=\"\",\"\",県内!$K$7)","v":"年"},{"$f":"IF(県内!$L$7=\"\",\"\",県内!$L$7)","v":""},{"$f":"IF(県内!$M$7=\"\",\"\",県内!$M$7)","v":""},{"$f":"IF(県内!$N$7=\"\",\"\",県内!$N$7)","v":"月"},{"$f":"IF(県内!$O$7=\"\",\"\",県内!$O$7)","v":""},{"$f":"IF(県内!$P$7=\"\",\"\",県内!$P$7)","v":""},{"$f":"IF(県内!$Q$7=\"\",\"\",県内!$Q$7)","v":"日"}]
[]
[null,"主たる営業所の電話番号","③",{"$f":"IF(県内!$I$8=\"\",\"\",県内!$I$8)","v":""},{"$f":"IF(県内!$J$8=\"\",\"\",県内!$J$8)","v":""},{"$f":"IF(県内!$K$8=\"\",\"\",県内!$K$8)","v":""},{"$f":"IF(県内!$L$8=\"\",\"\",県内!$L$8)","v":""},{"$f":"IF(県内!$M$8=\"\",\"\",県内!$M$8)","v":""},{"$f":"IF(県内!$N$8=\"\",\"\",県内!$N$8)","v":""},{"$f":"IF(県内!$O$8=\"\",\"\",県内!$O$8)","v":""},{"$f":"IF(県内!$P$8=\"\",\"\",県内!$P$8)","v":""},{"$f":"IF(県内!$Q$8=\"\",\"\",県内!$Q$8)","v":""},{"$f":"IF(県内!$R$8=\"\",\"\",県内!$R$8)","v":""},{"$f":"IF(県内!$S$8=\"\",\"\",県内!$S$8)","v":""},{"$f":"IF(県内!$T$8=\"\",\"\",県内!$T$8)","v":""},{"$f":"IF(県内!$U$8=\"\",\"\",県内!$U$8)","v":""}]
[]
[null,"法人番号","④",{"$f":"IF(県内!$I$11=\"\",\"\",県内!$I$11)","v":""},{"$f":"IF(県内!$J$11=\"\",\"\",県内!$J$11)","v":""},{"$f":"IF(県内!$K$11=\"\",\"\",県内!$K$11)","v":""},{"$f":"IF(県内!$L$11=\"\",\"\",県内!$L$11)","v":""},{"$f":"IF(県内!$M$11=\"\",\"\",県内!$M$11)","v":""},{"$f":"IF(県内!$N$11=\"\",\"\",県内!$N$11)","v":""},{"$f":"IF(県内!$O$11=\"\",\"\",県内!$O$11)","v":""},{"$f":"IF(県内!$P$11=\"\",\"\",県内!$P$11)","v":""},{"$f":"IF(県内!$Q$11=\"\",\"\",県内!$Q$11)","v":""},{"$f":"IF(県内!$R$11=\"\",\"\",県内!$R$11)","v":""},{"$f":"IF(県内!$S$11=\"\",\"\",県内!$S$11)","v":""},{"$f":"IF(県内!$T$11=\"\",\"\",県内!$T$11)","v":""},{"$f":"IF(県内!$U$11=\"\",\"\",県内!$U$11)","v":""}]
[]
[null,"申請項目",null,"⑤","⑥","⑦","⑧","⑨",null,null,"⑩"]
[null,null,null,{"$f":"IF(県内!$I$14=\"\",\"\",県内!$I$14)","v":""},{"$f":"IF(県内!$I$16=\"\",\"\",県内!$I$16)","v":""},{"$f":"IF(県内!$I$18=\"\",\"\",県内!$I$18)","v":""},{"$f":"IF(県内!$I$21=\"\",\"\",県内!$I$21)","v":""},{"$f":"IF(県内!$I$25=\"\",\"\",県内!$I$25)","v":""},{"$f":"IF(県内!$I$26=\"\",\"\",県内!$I$26)","v":""},null,{"$f":"IF(県内!$I$28=\"\",\"\",県内!$I$28)","v":""},{"$f":"IF(県内!$I$29=\"\",\"\",県内!$I$29)","v":""},null,{"$f":"IF(県内!$I$30=\"\",\"\",県内!$I$30)","v":""},null,{"$f":"IF(県内!$I$31=\"\",\"\",県内!$I$31)","v":""},null,{"$f":"IF(県内!$I$32=\"\",\"\",県内!$I$32)","v":""},null,{"$f":"IF(県内!$I$33=\"\",\"\",県内!$I$33)","v":""}]
[]
[null,null,null,"⑪","⑫","⑬",null,null,null,null,"⑭",null,"⑮","⑯",null,null,"⑰","⑱","⑲","⑳","㉑"]
[null,null,null,{"$f":"IF(県内!$I$35=\"\",\"\",県内!$I$35)","v":""},{"$f":"IF(県内!$I$37=\"\",\"\",県内!$I$37)","v":""},{"$f":"IF(県内!$I$39=\"\",\"\",県内!$I$39)","v":""},null,{"$f":"IF(県内!$N$39=\"\",\"\",県内!$N$39)","v":""},null,{"$f":"IF(県内!$Q$39=\"\",\"\",県内!$Q$39)","v":""},{"$f":"IF(県内!$I$43=\"\",\"\",県内!$I$43)","v":""},null,{"$f":"IF(県内!$I$46=\"\",\"\",県内!$I$46)","v":""},{"$f":"IF(県内!$I$49=\"\",\"\",県内!$I$49)","v":""},{"$f":"IF(県内!$I$50=\"\",\"\",県内!$I$50)","v":""},{"$f":"IF(県内!$I$51=\"\",\"\",県内!$I$51)","v":""},{"$f":"IF(県内!$I$53=\"\",\"\",県内!$I$53)","v":""},{"$f":"IF(県内!$I$55=\"\",\"\",県内!$I$55)","v":""},{"$f":"IF(県内!$I$57=\"\",\"\",県内!$I$57)","v":""},{"$f":"IF(県内!$I$59=\"\",\"\",県内!$I$59)","v":""},{"$f":"IF(県内!$I$61=\"\",\"\",県内!$I$61)","v":""}]
[]
[null,null,null,"㉒","㉓"]
[null,null,null,{"$f":"IF(県内!$I$63=\"\",\"\",県内!$I$63)","v":""},{"$f":"IF(県内!$I$65=\"\",\"\",県内!$I$65)","v":""},{"$f":"IF(県内!$I$66=\"\",\"\",県内!$I$66)","v":""},{"$f":"IF(県内!$I$67=\"\",\"\",県内!$I$67)","v":""},{"$f":"IF(県内!$I$68=\"\",\"\",県内!$I$68)","v":""},{"$f":"IF(県内!$I$69=\"\",\"\",県内!$I$69)","v":""},null,null,null,null,null,null,null,null,null,null,null,null,null,null,"提出書類のチェック必須"]
[null,null,null,null,null,null,null,null,null,null,null,null,null,null,null,null,null,null,null,null,null,null,null,"↓"]
[null,"提出する書類",8,"調書（様式第6号の3）及び対象技術者の資格証および常勤性が確認できる書類",null,null,null,null,null,null,null,null,null,null,null,null,null,null,null,null,null,null,null,"　"]
[null,null,9,"(一社)全国土木施工管理技士会連合会が発行する証明書及び対象技術者の常勤性の確認書類"]
[null,null,10,"建築CPD運営会議が発行する証明書（様式3-4内訳付様式）及び対象技術者の常勤性の確認書類"]
[null,null,11,"建設業労働災害防止協会加入証明書"]
[null,null,12,"防災協定の締結状況を証明する書類"]
[null,null,13,"雇用者状況調書（様式第6号の4）及び全ての職員の常勤性の確認書類"]
[null,null,14,"障害者雇用状況調書（様式第6号の5）及び障碍者の雇用又は常勤性の確認書類"]
[null,null,15,"環境マネジメント等の取得状況を証明する書類"]
[null,null,17,"茨城県知事からの移転成立通知書の写し"]
[null,null,18,"立地希望企業紹介等の状況を証明する書類"]
[null,null,19,"女性職員状況調書（様式第6号の6）及び常勤性の確認書類"]
[null,null,21,"一般事業主行動計画の写し（労働局受付印押印のもの）"]
[null,null,22,"施工実績調書（様式第６号の８）及び契約書又はCORINSの写し"]

{"sheet":"県内","index":2,"n_rows":69,"n_cols":42,"rows_kept":69,"cut":false,"hidden":false,"merged":[[2,1,2,7],[3,1,3,7],[4,1,4,7],[4,28,4,41],[2,8,2,20],[3,8,3,20],[5,1,5,6],[5,28,5,41],[6,1,6,7],[7,1,7,7],[9,41,9,42],[10,1,11,7],[10,28,11,41],[6,28,6,41],[13,1,14,7],[13,9,13,20],[13,28,16,41],[14,9,14,20],[15,1,16,7],[15,9,15,20],[16,9,16,20],[17,1,18,7],[17,9,17,20],[18,9,18,20],[20,1,21,7],[20,9,20,13],[20,28,21,41],[24,1,25,7],[24,9,24,13],[24,28,25,41],[25,9,25,13],[25,16,25,24],[27,1,32,7],[27,9,27,13],[27,28,29,41],[28,9,28,15],[28,16,30,24],[29,9,29,15],[30,9,30,15],[32,9,32,15],[34,1,34,7],[34,9,34,13],[34,28,34,41],[36,1,36,7],[36,9,36,27],[36,28,36,41],[38,1,39,7],[38,10,38,12],[38,17,38,21],[38,28,39,41],[39,16,39,26],[40,28,40,41],[42,1,42,7],[42,28,43,41],[45,1,45,7],[45,9,45,27],[45,28,45,41],[48,1,48,7],[48,9,48,27],[48,28,48,41],[49,9,49,27],[50,9,50,27],[49,28,49,41],[50,28,50,41],[52,1,52,7],[52,9,52,13],[52,28,52,41],[54,1,54,7],[54,9,54,13],[54,28,54,41],[56,1,56,7],[56,9,56,13],[56,28,56,41],[58,1,58,7],[58,9,58,13],[58,28,58,41],[60,1,60,7],[60,9,60,13],[60,28,60,41],[62,1,62,7],[62,9,62,13],[62,28,62,41],[64,0,68,0],[64,1,68,7],[64,9,64,20],[64,28,68,41],[65,9,65,20],[66,9,66,20],[67,9,67,20],[68,9,68,20]]}
["様式第6号　　　　　　　　　　　　　　　　　　　　　　　　　　　　　　　　　　　　　　　　　建設工事入札参加資格調書（その１　県内業者用）"]
[null,null,null,null,null,null,null,null,null,null,null,null,null,null,null,null,null,null,null,null,null,null,null,null,null,null,null,null,"行政庁記入欄"]
[null,"商号又は名称"]
[null,"代表者氏名"]
[1,"大臣・知事コード",null,null,null,null,null,null,null,null,"－",null,null,null,null,null,null,null,null,null,null,null,null,null,null,null,null,null,"※大臣は００－６桁の許可番号，\n　 茨城県知事は０８－６桁の許可番号を記入"]
[null,"取消前の大臣・知事コード\n（該当者のみ記入）",null,null,null,null,null,null,null,null,"－",null,null,null,null,null,null,null,null,null,null,null,null,null,null,null,null,null,"※Ｈ29・30またはＨ31・32入札参加資格を持っていて許可取り消しにより，資格を取り消された場合は，取消前の許可番号を記入"]
[2,"審査基準日",null,null,null,null,null,null,null,null,"年",null,null,"月",null,null,"日",null,null,null,null,null,null,null,null,null,null,null,"※経営事項審査の審査基準日を記入（和暦で元号表示なし）\n数字で入力、何も入力がない場合は「0」を入力（空白は入力不可）"]
[3,"主たる営業所の電話番号",null,null,null,null,null,null,null,null,null,null,null,null,null,null,null,null,null,null,null,null,null,null,null,null,null,null,"※(例)",null,"０","２","９","－","３","０","１","－","４","３","３","４"]
[]
[null,"４以下を記入するときは，必ず右側の確認欄で，調書や確認書類に漏れがないか確認してください。",null,null,null,null,null,null,null,null,null,null,null,null,null,null,null,null,null,null,null,null,null,null,null,null,null,null,"【添付する調書・確認書類】",null,null,null,null,null,null,null,null,null,null,null,null,"行政庁\n確認欄"]
[4,"法人番号（13桁）",null,null,null,null,null,null,null,null,null,null,null,null,null,null,null,null,null,null,null,null,null,null,null,null,null,null,"法人番号について\n※個人事業主は記載不要\n※国税庁長官が発行する法人番号指定通知書の写し，\n　　または，国税庁法人番号公表サイトで確認してください。\n※確認資料の添付は不要"]
[]
[null,"5以下を電子データで入力するときは，必ず表示が背景色なしになることを確認してください。"]
[5,"健康保険の加入状況",null,null,null,null,null,null,null,"１：加入（審査基準日）　２：適用除外",null,null,null,null,null,null,null,null,null,null,null,null,null,null,null,null,null,null,"健康保険，厚生年金保険，雇用保険の加入状況について\n※経審の結果通知書で「加入」，「適用除外」が\n　確認できない場合，申請は受付けません。\n\n※１加入，２適用除外の場合とも確認書類の添付は不要\n　　（別に提出している経審の結果通知書で確認します。）"]
[]
[6,"厚生年金保険の加入状況",null,null,null,null,null,null,null,"１：加入（審査基準日）　２：適用除外"]
[]
[7,"雇用保険の加入状況",null,null,null,null,null,null,null,"１：加入（審査基準日）　２：適用除外"]
[]
[]
[8,"舗装工事特別技術職員（茨城県の舗装Ａ等級を希望する場合のみ）",null,null,null,null,null,null,null,"０：いない　１：いる",null,null,null,null,null,null,null,null,null,null,null,null,null,null,null,null,null,null,"※１の場合は，\n　・調書（様式第6号の3）\n　・対象技術者の資格者証\n　・対象技術者の常勤性の確認書類\n　  標準報酬決定通知書の写し等　（詳細は手引き参照）"]
[]
[]
[]
[9,"CPDSの一定の学習履歴を有している職員の在籍及び取得単位",null,null,null,null,null,null,null,"０：いない　１：いる",null,null,null,null,null,null,null,null,null,null,null,null,null,null,null,null,null,null,"※１の場合は，\n　・(一社)全国土木施工管理技士会連合会が発行する証明書\n　・対象技術者の常勤性の確認書類\n　　標準報酬決定通知書の写し等　（詳細は手引き参照）"]
[null,null,null,null,null,null,null,null,null,"ユニット",null,null,null,null,null,null,"※「１：いる」を選択した場合のみ記載\n　技術者が取得しているユニット数の合計\n"]
[]
[10,"建築・設備CPDの一定の学習履歴を有している職員の在籍及び取得単位",null,null,null,null,null,null,null,"０：いない　１：いる",null,null,null,null,null,null,null,null,null,null,null,null,null,null,null,null,null,null,"※１の場合は，\n　・建築CPD運営会議が発行する証明書（様式3-4内訳付様式）\n　・対象技術者の常勤性の確認書類\n　　標準報酬決定通知書の写し等　（詳細は手引き参照）"]
[null,null,null,null,null,null,null,null,null,"時間（建築士）",null,null,null,null,null,null,"※「１：いる」を選択した場合のみ記載\n　技術者の資格ごとの認定時間の合計を\n　添付する証明書から足し上げて記載する\n　該当のない資格の認定時間は「０」を記入する"]
[null,null,null,null,null,null,null,null,null,"時間（建築施工管理技士）"]
[null,null,null,null,null,null,null,null,null,"時間（建築設備士）"]
[null,null,null,null,null,null,null,null,null,"時間（電気工事施工管理技士）"]
[null,null,null,null,null,null,null,null,null,"時間（管工事施工管理技士）"]
[]
[11,"建災防の加入状況",null,null,null,null,null,null,null,"０：なし　１：あり",null,null,null,null,null,null,null,null,null,null,null,null,null,null,null,null,null,null,"※１の場合は，「建設業労働災害防止協会加入証明書」"]
[]
[12,"防災協定の締結の有無",null,null,null,null,null,null,null,"０：なし　１：茨城県と締結　２：茨城県以外",null,null,null,null,null,null,null,null,null,null,null,null,null,null,null,null,null,null,"※１の場合のみ， 「所属団体が発行する証明書」又は\n　県と直接協定を締結している場合は，「防災協定書の写し」"]
[]
[13,"常勤雇用・若年者雇用\n（増加した人数）\n（増加無しの場合は「０」を記入）",null,null,null,null,null,null,null,"人","うち若年者\n（35歳未満）",null,null,null,"人",null,null,"入職を促す取り組み\n０：なし　　１：あり",null,null,null,null,null,null,null,null,null,null,"※増加人数がある場合は，\n　・雇用者状況調書（様式第6号の4）\n　・全ての職員の常勤性の確認書類\n　　「令和2年」及び「平成30年」2年分の\n　　標準報酬決定通知書の写し　（詳細は手引き参照）"]
[null,null,null,null,null,null,null,null,null,null,null,null,null,null,null,null,"※若年者の増加人数を記入した場合のみ記載"]
[null,null,null,null,null,null,null,null,null,null,null,null,null,null,null,null,null,null,null,null,null,null,null,null,null,null,null,null,"※入職を促す取り組みが「１」の場合は，\n　・取り組みが確認できる資料\n　　　例：インターン受入，就職説明会等のチラシ，ＨＰの画面等\n　　　　　公表したもので会社名が記載されているもの"]
[]
[14,"障害者雇用人数\n（該当無しの場合は「０」を記入）",null,null,null,null,null,null,null,"人",null,null,null,null,null,null,null,null,null,null,null,null,null,null,null,null,null,null,"※人数を記載する場合は，\n　・障害者雇用状況調書（様式第6号の5）及び下記資料\n\n　〇障害者雇用状況報告書の提出義務がある場合\n　　・障害者雇用状況報告書の写し\n　〇障害者雇用状況報告書の提出義務がない場合\n　　・障害者に係る手帳の写し\n　　・対象技術者の常勤性の確認書類\n　　　標準報酬決定通知書の写し等　（詳細は手引き参照）"]
[]
[]
[15,"環境マネジメント等の取得状況",null,null,null,null,null,null,null,"０：なし　１：ｴｺｱｸｼｮﾝ21　２：ｴｺｽﾃｰｼﾞ　３：KES・環境ﾏﾈｼﾞﾒﾝﾄｼｽﾃﾑ　４：茨城エコ事業所",null,null,null,null,null,null,null,null,null,null,null,null,null,null,null,null,null,null,"※１～３の場合は，「証明書類（登録証，認定書等）」\n　　　　 ４の場合は，確認書類の添付は不要"]
[]
[]
[16,"働き方改革優良（推進）企業認定 又は仕事と生活の調和推進計画届出及び実績\n※「１」又は「２」を記入した場合，\n　　次の2か所のカラムを記入。",null,null,null,null,null,null,null,"０：なし　１：働き方改革優良（推進）企業　２：仕事と生活の調和推進計画",null,null,null,null,null,null,null,null,null,null,null,null,null,null,null,null,null,null,"※１,２の場合でも，確認書類の添付は不要　"]
[null,null,null,null,null,null,null,null,null,"０：なし　１：あり 「働き方改革優良企業の認定」または、\n                   「仕事と生活の調和推進計画実施報告書の提出\n　　　　　　　実績対象：長時間労働の是正，休日増加，育児・介護休業（休暇）の取得等」",null,null,null,null,null,null,null,null,null,null,null,null,null,null,null,null,null,null,"※確認書類の添付は不要"]
[null,null,null,null,null,null,null,null,null,"０：なし　１：あり 上記取組の内容が「週休2日又は4週8休」",null,null,null,null,null,null,null,null,null,null,null,null,null,null,null,null,null,null,"※確認書類の添付は不要"]
[]
[17,"本社機能移転に係る企業紹介",null,null,null,null,null,null,null,"０：なし　１：あり",null,null,null,null,null,null,null,null,null,null,null,null,null,null,null,null,null,null,"※１の場合は，「茨城県知事からの移転成立通知書の写し」"]
[]
[18,"立地希望企業紹介等の状況",null,null,null,null,null,null,null,"０：なし　１：あり",null,null,null,null,null,null,null,null,null,null,null,null,null,null,null,null,null,null,"※１の場合は，「茨城県知事からの契約成立通知書」又は\n　「茨城県との売買契約書並びに土地及び建物の登記簿の写し」"]
[]
[19,"女性職員の割合（２５％以上）または人数（5人以上）",null,null,null,null,null,null,null,"０：なし　１：あり",null,null,null,null,null,null,null,null,null,null,null,null,null,null,null,null,null,null,"※１の場合は，\n　・女性職員状況調書（様式第6号の6）\n　・全ての職員の常勤性の確認書類\n　　標準報酬決定通知書の写し等　（詳細は手引き参照）"]
[]
[20,"「いばらき女性活躍推進会議」への登録",null,null,null,null,null,null,null,"０：なし　１：あり",null,null,null,null,null,null,null,null,null,null,null,null,null,null,null,null,null,null,"※１の場合でも，確認書類の添付は不要"]
[]
[21,"一般事業主行動計画の届出",null,null,null,null,null,null,null,"０：なし　１：あり",null,null,null,null,null,null,null,null,null,null,null,null,null,null,null,null,null,null,"※１の場合は，「一般事業主行動計画の写し」\n　　　　　　　　　　　　　　　　　　（労働局受付印押印のもの）"]
[]
[22,"ICT施工の実績",null,null,null,null,null,null,null,"０：なし　１：あり",null,null,null,null,null,null,null,null,null,null,null,null,null,null,null,null,null,null,"※１の場合は，\n　・施工実績調書（様式第６号の８）\n　・契約書の写し又はCORINSの写し （詳細は手引き参照）"]
[]
[23,"残留措置制度の希望\n(茨城県の資格を申請する場合のみ)\n\n(注意)\n「１希望する」を選択した場合，格付等級が前回（31・32年度）より上位の等級になる場合でも前年度の等級に残留することとなります。",null,null,null,null,null,null,null,"０：希望しない　１：希望する　（土木の格付残留）",null,null,null,null,null,null,null,null,null,null,null,null,null,null,null,null,null,null,"※資料の添付は不要"]
[null,null,null,null,null,null,null,null,null,"０：希望しない　１：希望する　（建築の格付残留）"]
[null,null,null,null,null,null,null,null,null,"０：希望しない　１：希望する　（電気の格付残留）"]
[null,null,null,null,null,null,null,null,null,"０：希望しない　１：希望する　（管の格付残留）"]
[null,null,null,null,null,null,null,null,null,"０：希望しない　１：希望する　（舗装の格付残留）"]

{"sheet":"13常勤雇用・若年者雇用の記入例（補足）","index":3,"n_rows":3,"n_cols":9,"rows_kept":3,"cut":false,"hidden":false,"merged":[]}
[]
[]
[null,null,null,null,"①",null,"②",null,"③"]